[Event "Champions Showdown Kings Rapid 2019-B"]
[Site "Saint Louis"]
[Date "2019.02.21"]
[Round "5.2"]
[White "Duda, Jan-Krzysztof"]
[Black "Nakamura, Hikaru"]
[Result "1/2-1/2"]
[ECO "C54"]
[WhiteElo "2731"]
[BlackElo "2749"]
[Annotator "RC"]
[PlyCount "67"]
[EventDate "2019.02.09"]
[EventType "match (rapid)"]
[EventCountry "USA"]
[SourceTitle "playchess.com"]
[Source "ChessBase"]
[SourceQuality "1"]
[TimeControl "900+10"]

1. e4 {[%emt 0:00:00]} e5 {[%emt 0:00:00]} 2. Nf3 {[%emt 0:00:00]} Nc6 {[%emt 0:00:00]} 3. Bc4 {[%emt 0:00:00]} Bc5 {[%emt 0:00:00]} 4. c3 {[%emt 0:00:00]} Nf6 {[%emt 0:00:00]} 5. d3 {[%emt 0:00:00]} d6 {[%emt 0:00:00]} 6. O-O {[%emt 0:00:01]} O-O {[%emt 0:00:00]} 7. Bg5 {[%emt 0:00:10]} h6 {[%emt 0:00:00]} 8. Bh4 {[%emt 0:00:02]} a6 {[%emt 0:00:00]} 9. a4 {[%emt 0:00:01]} g5 {[%emt 0:00:00]} 10. Bg3 {[%emt 0:00:02]} Ba7 {[%emt 0:00:01]} 11. Nbd2 {[%emt 0:00:02]} Kg7 {[%emt 0:00:01]} 12. Re1 {[%emt 0:00:10]} Nh7 {[%emt 0:00:10]} 13. d4 {[%emt 0:00:15]} h5 {[%emt 0:00:08]} 14. h3 g4 {[%emt 0:00:04]} 15. Bh4 {[%emt 0:03:23]} f6 {[%emt 0:00:02]} 16. hxg4 {[%emt 0:01:37]} hxg4 {[%emt 0:00:08]} 17. Nh2 {[%emt 0:00:03]} Ng5 {[%emt 0:00:05]} 18. Be2 {[%emt 0:02:14]} Rh8 {[%emt 0:00:18]} 19. Bxg5 {[%emt 0:01:34]} fxg5 {[%emt 0:00:02]} 20. Bxg4 {[%emt 0:00:02]} exd4 {[%emt 0:00:01]} 21. Ndf3 {[%emt 0:00:02]} dxc3 {[%emt 0:03:37]} 22. bxc3 {[%emt 0:00:02]} Qf6 {[%emt 0:01:00]} 23. Qd2 {[%emt 0:01:40]} Rxh2 {[%emt 0:01:52]} 24. Nxh2 {[%emt 0:01:04]} Ne5 {[%emt 0:00:01]} 25. Bxc8 {[%emt 0:01:47]} Rxc8 {[%emt 0:00:01]} 26. Rab1 {[%emt 0:00:04]} Rh8 {[%emt 0:06:58]} 27. Rxb7 {[%emt 0:00:21]} Rxh2 {[%emt 0:00:08]} 28. Rxc7+ {[%emt 0:00:31]} Kg6 {[%emt 0:00:01]} 29. Rxa7 {[%emt 0:01:07]} Rxg2+ {[%emt 0:00:11]} 30. Kxg2 {[%emt 0:00:11]} Qf3+ {[%emt 0:00:02]} 31. Kf1 {[%emt 0:00:45]} Qh3+ {[%emt 0:00:02]} 32. Ke2 {[%emt 0:00:02]} Qf3+ {[%emt 0:00:01]} 33. Kf1 {[%emt 0:00:01]} Qh3+ {[%emt 0:00:02]} 34. Ke2 {[%emt 0:00:01]} 1/2-1/2